fUSD/lending_fUSD_20251014
["ID","MTS","AMOUNT","RATE_DAILY","PERIOD"]
[391235894,1760423440508,-302.63,0.00021026,2]
[391235896,1760423440516,-300.79,0.00021026,2]
[391235898,1760423440527,-304.79,0.00021026,2]
[391235900,1760423440536,-302.07,0.00021026,2]
[391235902,1760423440550,-301.01,0.00021026,2]
[391235904,1760423440559,-304.82,0.00021027,2]
[391235906,1760423440568,-167.18,0.0002103,2]
[391235908,1760423440577,-302.7,0.00021033,2]
[391235910,1760423440586,-305.0,0.0002107,2]
[391235912,1760423440595,-25000.0,0.00021159,4]
[391235915,1760423440604,-16796.16,0.00021615,4]
[391235917,1760423440613,-2081.24347964,0.00021787,2]
[391235919,1760423440621,-167.18,0.00021864,2]
[391235921,1760423440631,-348695.06462343,0.00022,4]
[391235923,1760423440640,-150.0,0.00022521,2]
[391235925,1760423440649,-160.34461277,0.00022523,2]
[391235927,1760423440658,-167.18,0.00022697,2]
[391235929,1760423440668,-2467.1,0.00022825,2]
[391235931,1760423440677,-550.8932374,0.00023076,2]
[391235933,1760423440686,-300.0,0.00023076,2]
[391235935,1760423440695,-200.0,0.00023076,2]
[391235937,1760423440705,-475.40571922,0.00023114,2]
[391235939,1760423440714,-2081.24347964,0.00023165,2]
[391235941,1760423440723,-167.18,0.0002353,2]
[391235943,1760423440733,-481941.97153844,0.00024,2]
[391235945,1760423440742,-853.03282679,0.00024,7]
[391235949,1760423440770,-128.45717321,0.00024,7]
[391235951,1760423440781,-4000.0,0.00024025,2]
[391235953,1760423440789,-160.34461277,0.00024065,2]
[391235955,1760423440798,-690.963312,0.00024542,2]
[391235957,1760423440809,-1390.28016764,0.00024542,2]
[391235959,1760423440818,-1181.044,0.00024563,7]
[391235961,1760423440827,-151.0,0.00024577,2]
[391235963,1760423440837,-151.0,0.00024577,2]
[391235965,1760423440846,-216.82521513,0.00024577,2]
[391235967,1760423440855,-29006.01,0.00024592,2]
[391235969,1760423440864,-150.0,0.00024633,2]
[391235971,1760423440873,-150.0,0.00024633,2]
[391235973,1760423440882,-150.0,0.00024633,2]
[391235975,1760423440890,-500.0,0.0002465,2]
[391235977,1760423440899,-44620.2968655,0.000248,2]
[391235979,1760423440908,-4443.80534257,0.000249,2]
[391235982,1760423440917,-500.0,0.00024932,2]
[391235984,1760423440926,-171.0,0.00024932,7]
[391235986,1760423440935,-171.0,0.00025,7]
[391235988,1760423440944,-542.77534711,0.00025,2]
[391235990,1760423440953,-11487.01421395,0.00025,2]
[391235992,1760423440963,-50851.05246201,0.00025053,7]
[391236091,1760423442887,-400.40000003,0.00025053,7]
[391236092,1760423442899,-5770.64841155,0.00025053,7]
[391236093,1760423443051,-1949.46026112,0.00025053,7]
[391236094,1760423443062,-282.9650433,0.00025053,7]
[391236095,1760423443075,-298.970004,0.00025053,7]
[391236129,1760423517481,150.0,0.00024933,120]
[391236138,1760423609649,500.0,0.0002727,120]
[391236140,1760423613912,836.43,0.00012381,2]
[391236141,1760423616396,-613.77902078,0.00013032,2]
[391236144,1760423622170,500.0,0.00027305,120]
[391236150,1760423651688,426.15606968,0.00027397,120]
[391236151,1760423654424,250.0,0.00027397,120]
[391236152,1760423682485,175.4,0.000161,30]
[391236155,1760423710184,181.0,0.00022916,120]
[391236156,1760423711870,181.0,0.00024061,120]
[391236157,1760423713311,181.0,0.00025265,120]
[391236158,1760423714689,181.0,0.00026528,120]
[391236159,1760423771620,-5000000.0,0.00029959,30]
[391236177,1760423889801,281.0,0.00027397,120]
[391236178,1760423933410,426.15606968,0.00027397,120]
[391236179,1760423966705,2000.0,0.00027397,120]
[391236180,1760423977023,2527.0,0.00027397,120]
[391236183,1760424218368,165.36632064,0.00027397,120]
[391236190,1760424347212,1000.53,0.0002478,120]
[391236191,1760424366526,-1341059.66418595,0.00029945,30]
[391236192,1760424366556,-311.3427,0.00029945,60]
[391236193,1760424366591,-348319.12511278,0.00029945,30]
[391236194,1760424366620,-810210.82801447,0.00029945,30]
[391236195,1760424366650,-359.25,0.00029945,120]
[391236196,1760424366680,-500.0,0.00029945,120]
[391236197,1760424366710,-500.0,0.00029945,120]
[391236198,1760424366740,-500.0,0.00029945,120]
[391236199,1760424366768,-500.0,0.00029945,120]
[391236200,1760424366797,-500.0,0.00029945,120]
[391236201,1760424366825,-500.0,0.00029945,120]
[391236202,1760424366857,-500.0,0.00029945,120]
[391236203,1760424366888,-494.19,0.00029945,120]
[391236204,1760424366919,-500.0,0.00029945,120]
[391236205,1760424366948,-500.0,0.00029945,120]
[391236206,1760424366976,-500.0,0.00029945,120]
[391236207,1760424367003,-500.0,0.00029945,120]
[391236208,1760424367030,-500.0,0.00029945,120]
[391236209,1760424367058,-300.14,0.00029945,120]
[391236210,1760424367087,-500.0,0.00029945,120]
[391236211,1760424367113,-500.0,0.00029945,120]
[391236212,1760424367140,-500.0,0.00029945,120]
[391236213,1760424367166,-500.0,0.00029945,120]
[391236214,1760424367192,-500.0,0.00029945,120]
[391236215,1760424367218,-500.0,0.00029945,120]
[391236216,1760424367246,-500.0,0.00029945,120]
[391236217,1760424367272,-500.0,0.00029945,120]
[391236218,1760424367298,-500.0,0.00029945,120]
[391236219,1760424367325,-500.0,0.00029945,120]
[391236220,1760424367358,-237.2,0.00029945,120]
[391236221,1760424367387,-500.0,0.00029945,120]
[391236222,1760424367415,-500.0,0.00029945,120]
[391236223,1760424367442,-500.0,0.00029945,120]
[391236224,1760424367470,-643.61,0.00029945,120]
[391236225,1760424367498,-500.0,0.00029945,120]
[391236226,1760424367526,-500.0,0.00029945,120]
[391236227,1760424367554,-500.0,0.00029945,120]
[391236228,1760424367587,-500.0,0.00029945,120]
[391236229,1760424367614,-500.0,0.00029945,120]
[391236230,1760424367641,-500.0,0.00029945,120]
[391236231,1760424367668,-205.08677088,0.00029945,120]
[391236232,1760424367694,-500.0,0.00029945,120]
[391236233,1760424367721,-500.0,0.00029945,120]
[391236234,1760424367747,-500.0,0.00029945,120]
[391236235,1760424367774,-500.0,0.00029945,120]
[391236236,1760424367801,-500.0,0.00029945,120]
[391236237,1760424367832,-601.96,0.00029945,120]
[391236238,1760424367861,-227.0,0.00029945,120]
[391236239,1760424367887,-500.0,0.00029945,120]
[391236240,1760424367912,-500.0,0.00029945,120]
[391236241,1760424367938,-500.0,0.00029945,120]
[391236242,1760424367964,-500.0,0.00029945,120]
[391236243,1760424367990,-500.0,0.00029945,120]
[391236244,1760424368018,-500.0,0.00029945,120]
[391236245,1760424368046,-500.0,0.00029945,120]
[391236246,1760424368074,-500.0,0.00029945,120]
[391236247,1760424368106,-500.0,0.00029945,120]
[391236248,1760424368134,-500.0,0.00029945,120]
[391236249,1760424368160,-362.18,0.00029945,120]
[391236250,1760424368187,-453.0,0.00029945,120]
[391236251,1760424368213,-500.0,0.00029945,120]
[391236252,1760424368240,-500.0,0.00029945,120]
[391236253,1760424368266,-500.0,0.00029945,120]
[391236254,1760424368294,-500.0,0.00029945,120]
[391236255,1760424368321,-500.0,0.00029945,120]
[391236256,1760424368350,-500.0,0.00029945,120]
[391236257,1760424368383,-500.0,0.00029945,120]
[391236258,1760424368409,-500.0,0.00029945,120]
[391236259,1760424368436,-500.0,0.00029945,120]
[391236260,1760424368462,-500.0,0.00029945,120]
[391236261,1760424368489,-157.49,0.00029945,120]
[391236262,1760424368518,-1108.91146585,0.00029945,120]
[391236263,1760424368545,-500.0,0.00029945,120]
[391236264,1760424368573,-500.0,0.00029945,120]
[391236265,1760424368605,-500.0,0.00029945,120]
[391236266,1760424368633,-500.0,0.00029945,120]
[391236267,1760424368661,-586.66,0.00029945,120]
[391236268,1760424368689,-205075.72873428,0.00029945,30]
[391236269,1760424368717,-6760608.70654087,0.00029945,30]
[391236270,1760424368745,-49832.94758552,0.00029945,30]
[391236271,1760424368772,-1425.77074091,0.00029945,30]
[391236272,1760424368798,-310.0,0.00029945,120]
[391236273,1760424368824,-1035.85208399,0.00029945,60]
[391236274,1760424368854,-440.23929039,0.00029945,120]
[391236275,1760424368881,-500.0,0.00029945,120]
[391236276,1760424368909,-500.0,0.00029945,120]
[391236277,1760424368938,-500.0,0.00029945,120]
[391236278,1760424368966,-500.0,0.00029945,120]
[391236279,1760424368994,-586.66,0.00029945,120]
[391236280,1760424369019,-1000.0,0.00029945,30]
[391236281,1760424369045,-1000.0,0.00029945,30]
[391236282,1760424369072,-1000.0,0.00029945,30]
[391236283,1760424369104,-1000.0,0.00029945,30]
[391236284,1760424369131,-1000.0,0.00029945,30]
[391236285,1760424369158,-1000.0,0.00029945,30]
[391236286,1760424369184,-1000.0,0.00029945,30]
[391236287,1760424369210,-1000.0,0.00029945,30]
[391236288,1760424369237,-1000.0,0.00029945,30]
[391236289,1760424369265,-1000.0,0.00029945,30]
[391236290,1760424369292,-1000.0,0.00029945,30]
[391236291,1760424369319,-1000.0,0.00029945,30]
[391236292,1760424369345,-1000.0,0.00029945,30]
[391236293,1760424369371,-1000.0,0.00029945,30]
[391236294,1760424369398,-1000.0,0.00029945,30]
[391236295,1760424369424,-798.79777148,0.00029945,30]
[391236296,1760424369450,-935.89293851,0.00029945,30]
[391236297,1760424369476,-1000.0,0.00029945,30]
[391236298,1760424369502,-437.20465037,0.00029945,30]
[391236299,1760424369528,-663.00561762,0.00029945,120]
[391236300,1760424369552,-532.31131006,0.00029945,30]
[391236301,1760424369578,-397.83637256,0.00029945,30]
[391236302,1760424369606,-400.73834631,0.00029945,60]
[391236303,1760424369631,-668.67168403,0.00029945,30]
[391236304,1760424369656,-505.26859643,0.00029945,91]
[391236305,1760424369682,-524.73335964,0.00029945,120]
[391236306,1760424369707,-912.77717175,0.00029945,30]
[391236307,1760424369734,-514.89741549,0.00029945,120]
[391236308,1760424369759,-704.24810363,0.00029945,30]
[391236309,1760424369786,-774.80477032,0.00029945,120]
[391236310,1760424369812,-770.0907797,0.00029945,30]
[391236311,1760424369840,-184.08445557,0.00029945,120]
[391236312,1760424369866,-155.16885978,0.00029945,120]
[391236313,1760424369892,-645.08394285,0.00029945,30]
[391236314,1760424369919,-431.53180037,0.00029945,120]
[391236315,1760424369945,-893.88382899,0.00029945,30]
[391236316,1760424369972,-902.62004938,0.00029945,30]
[391236317,1760424369998,-450.05217372,0.00029945,120]
[391236318,1760424370024,-972.24858801,0.00029945,30]
[391236319,1760424370050,-366.49600298,0.00029945,60]
[391236320,1760424370078,-192.31724269,0.00029945,120]
[391236321,1760424370112,-217.56432458,0.00029945,30]
[391236322,1760424370140,-536.96203208,0.00029945,120]
[391236323,1760424370167,-367.03583791,0.00029945,30]
[391236324,1760424370193,-334.76545065,0.00029945,60]
[391236325,1760424370219,-487.02176062,0.00029945,30]
[391236326,1760424370246,-681.3717017,0.00029945,30]
[391236327,1760424370273,-281.02105889,0.00029945,120]
[391236328,1760424370299,-277.24419981,0.00029945,120]
[391236329,1760424370326,-492.98912306,0.00029945,120]
[391236330,1760424370356,-515.83937972,0.00029945,120]
[391236331,1760424370381,-190.844881,0.00029945,30]
[391236332,1760424370406,-997.0,0.00029945,30]
[391236333,1760424370432,-883.02545698,0.00029945,30]
[391236334,1760424370458,-214.23886412,0.00029945,120]
[391236335,1760424370489,-188.33989009,0.00029945,120]
[391236336,1760424370518,-14974.90899229,0.00029945,30]
[391236337,1760424370543,-950.55825355,0.00029945,120]
[391236338,1760424370571,-923.51456027,0.00029945,30]
[391236339,1760424370602,-359.28439172,0.00029945,60]
[391236340,1760424370629,-439.22814009,0.00029945,30]
[391236341,1760424370656,-618.70161493,0.00029945,120]
[391236342,1760424370683,-408.1452577,0.00029945,60]
[391236343,1760424370708,-213.17032343,0.00029945,30]
[391236344,1760424370739,-930.28291994,0.00029945,120]
[391236345,1760424370765,-279.20897913,0.00029945,30]
[391236346,1760424370792,-960.66522765,0.00029945,30]
[391236347,1760424370819,-213.03865268,0.00029945,31]
[391236348,1760424370849,-567.79748177,0.00029945,120]
[391236349,1760424370874,-269.31485214,0.00029945,30]
[391236350,1760424370900,-756.0,0.00029945,120]
[391236351,1760424370925,-506.15832432,0.00029945,120]
[391236352,1760424370951,-571.0456455,0.00029945,120]
[391236353,1760424371831,-863.2181213,0.00029945,30]
[391236354,1760424371897,-274.1959436,0.00029945,30]
[391236355,1760424371924,-448.85780915,0.00029945,30]
[391236356,1760424371951,-504.42449236,0.00029945,120]
[391236357,1760424371977,-303.72471996,0.00029945,60]
[391236358,1760424372004,-723.79768675,0.00029945,120]
[391236359,1760424372030,-262.67383634,0.00029945,120]
[391236360,1760424372056,-822.59782561,0.00029945,120]
[391236361,1760424372086,-44173.00128894,0.00029945,30]
[391236362,1760424372112,-373.65526231,0.00029945,30]
[391236363,1760424372139,-363.1710286,0.00029945,120]
[391236364,1760424372165,-312.3968938,0.00029945,120]
[391236365,1760424372190,-500.0,0.00029945,120]
[391236366,1760424372216,-286.48057964,0.00029945,30]
[391236367,1760424372244,-919.98970166,0.00029945,120]
[391236368,1760424372270,-151.18156218,0.00029945,120]
[391236369,1760424372297,-206.68045039,0.00029945,30]
[391236370,1760424372322,-183.64716125,0.00029945,120]
[391236371,1760424372352,-579.64361755,0.00029945,120]
[391236372,1760424372378,-722.0,0.00029945,120]
[391236373,1760424372404,-770.319149,0.00029945,30]
[391236374,1760424372430,-10000.0,0.00029945,30]
[391236375,1760424372456,-193.59988713,0.00029945,120]
[391236376,1760424372483,-511.94930879,0.00029945,30]
[391236377,1760424372519,-500.0,0.00029945,120]
[391236378,1760424372545,-500.0,0.00029945,120]
[391236379,1760424372572,-500.0,0.00029945,120]
[391236380,1760424372601,-500.0,0.00029945,120]
[391236381,1760424372627,-500.0,0.00029945,120]
[391236382,1760424372653,-500.0,0.00029945,120]
[391236383,1760424372679,-500.0,0.00029945,120]
[391236384,1760424372704,-500.0,0.00029945,120]
[391236385,1760424372729,-500.0,0.00029945,120]
[391236386,1760424372754,-500.0,0.00029945,120]
[391236387,1760424372779,-155.88448893,0.00029945,120]
[391236388,1760424372806,-739.9,0.00029945,120]
[391236389,1760424372834,-2682.00081345,0.00029945,61]
[391236390,1760424372861,-500.0,0.00029945,120]
[391236391,1760424372886,-550.56669003,0.00029945,120]
[391236392,1760424372911,-2373.0,0.00029945,60]
[391236393,1760424372936,-11216.78277652,0.00029945,30]
[391236394,1760424372961,-5235.29611407,0.00029945,120]
[391236395,1760424372987,-150.0,0.00029945,120]
[391236396,1760424373013,-2800.0,0.00029945,31]
[391236397,1760424373038,-200.78960191,0.00029945,120]
[391236398,1760424373064,-500.0,0.00029945,120]
[391236399,1760424373089,-361.0,0.00029945,120]
[391236400,1760424373115,-1035.07470297,0.00029945,70]
[391236401,1760424373143,-383853.90184936,0.00029945,30]
[391236402,1760424378195,-104899.14805064,0.00029945,30]
[391236403,1760424378222,-735.61807194,0.00029945,120]
[391236404,1760424378251,-500.0,0.00029945,120]
[391236405,1760424378279,-284.53526824,0.00029945,120]
[391236406,1760424378304,-1113.0,0.00029945,30]
[391236407,1760424378331,-150.0,0.00029945,120]
[391236408,1760424378361,-304.8,0.00029945,120]
[391236409,1760424378386,-231.08775673,0.00029945,120]
[391236410,1760424378412,-6461.26214006,0.00029945,120]
[391236411,1760424378438,-6955.76951536,0.00029945,60]
[391236412,1760424378463,-152.68173119,0.00029945,120]
[391236413,1760424378488,-3600.0,0.00029945,120]
[391236414,1760424378513,-1144.01959209,0.00029945,30]
[391236415,1760424378539,-11773.46921669,0.00029945,120]
[391236416,1760424378564,-3895.10896225,0.00029945,120]
[391236417,1760424378595,-175.0,0.00029945,120]
[391236418,1760424378622,-14817.67,0.00029945,30]
[391236419,1760424378648,-167.0,0.00029945,120]
[391236420,1760424378675,-189.74917337,0.00029945,120]
[391236421,1760424378706,-9942550.08052144,0.00029945,30]
[391236422,1760424383085,-10100100.0,0.00029945,30]
[391236423,1760424386723,-10100100.0,0.00029945,30]
[391236424,1760424389895,-10100100.0,0.00029945,30]
[391236425,1760424393789,-10100100.0,0.00029945,30]
[391236437,1760424418455,-10200200.0,0.00029945,30]
[391236438,1760424424572,-5050255.54292457,0.00029945,30]
[391236439,1760424424993,-500.0,0.00029945,120]
[391236440,1760424425040,-257.54050934,0.00029945,120]
[391236441,1760424425085,-500.0,0.00029945,120]
[391236442,1760424425130,-500.0,0.00029945,120]
[391236443,1760424425174,-500.0,0.00029945,120]
[391236444,1760424425217,-500.0,0.00029945,120]
[391236445,1760424425259,-500.0,0.00029945,120]
[391236446,1760424425306,-500.0,0.00029945,120]
[391236447,1760424425348,-500.0,0.00029945,120]
[391236448,1760424425394,-500.0,0.00029945,120]
[391236449,1760424425444,-500.0,0.00029945,120]
[391236450,1760424425491,-359.78393611,0.00029945,120]
[391236451,1760424425532,-3000.0,0.00029945,120]
[391236452,1760424425572,-1000.0,0.00029945,30]
[391236453,1760424425614,-1000.0,0.00029945,60]
[391236454,1760424425661,-1000.0,0.00029945,30]
[391236455,1760424425700,-1000.0,0.00029945,30]
[391236456,1760424425740,-1000.0,0.00029945,30]
[391236457,1760424425780,-1000.0,0.00029945,60]
[391236458,1760424425821,-1000.0,0.00029945,60]
[391236459,1760424425864,-1000.0,0.00029945,60]
[391236460,1760424425910,-1000.0,0.00029945,30]
[391236461,1760424425948,-1000.0,0.00029945,60]
[391236462,1760424425987,-1000.0,0.00029945,30]
[391236463,1760424426024,-908.0,0.00029945,120]
[391236464,1760424426070,-1000.0,0.00029945,30]
[391236465,1760424426111,-1000.0,0.00029945,30]
[391236466,1760424426157,-5127419.13262998,0.00029945,60]
[391236467,1760424430802,-1041644.22737002,0.00029945,60]
[391236468,1760424430840,-1000.0,0.00029945,30]
[391236469,1760424430883,-1000.0,0.00029945,60]
[391236470,1760424430923,-1000.0,0.00029945,30]
[391236471,1760424430962,-1000.0,0.00029945,30]
[391236472,1760424431002,-1000.02,0.00029945,30]
[391236473,1760424431045,-200.0,0.00029945,120]
[391236474,1760424431376,-488753.0499,0.00029945,30]
[391236509,1760424632033,-222.65097922,0.00013032,2]
[391236511,1760424632042,-172.54612843,0.00013684,2]
[391236514,1760424632055,-663.88387157,0.00013684,2]
[391236515,1760424632065,-664.95532133,0.00014336,2]
[391236518,1760424632078,-354.91492253,0.00014336,2]
[391236520,1760424632089,-980.12975614,0.00014336,2]
[391236522,1760424632099,-415.16114515,0.00014336,2]
[391236524,1760424632110,-421.26885485,0.00014336,2]
[391236526,1760424632119,-836.43,0.00014987,2]
[391236528,1760424632128,-836.43,0.00015639,2]
[391236530,1760424632140,-836.43,0.0001629,2]
[391236532,1760424632150,-836.43,0.00016942,2]
[391236535,1760424632160,-1200.0,0.00017592,2]
[391236537,1760424632169,-836.43,0.00017594,2]
[391236538,1760424632178,-218.0,0.00018243,2]
[391236540,1760424632187,-300.0,0.00018244,2]
[391236542,1760424632196,-836.43,0.00018245,2]
[391236544,1760424632206,-836.43,0.00018897,2]
[391236546,1760424632215,-1093.0,0.00019298,2]
[391236548,1760424632225,-836.43,0.00019548,2]
[391236549,1760424632234,-836.43,0.000202,2]
[391236550,1760424632243,-450.86114515,0.00020852,2]
[391236551,1760424632254,-385.56885485,0.00020852,2]
[391236552,1760424632263,-836.43,0.00021503,2]
[391236553,1760424632273,-1105.36,0.00021792,2]
[391236554,1760424632282,-176.99,0.00021968,2]
[391236555,1760424632291,-188.10713572,0.00022027,2]
[391236556,1760424632314,-132.89286428,0.00022027,2]
[391236557,1760424632325,-1000.53,0.00022027,2]
[391236558,1760424632335,-836.43,0.00022155,2]
[391236559,1760424632354,-537.24,0.0002223,2]
[391236560,1760424632373,-836.43,0.00022807,2]
[391236561,1760424632382,-555.61,0.00022926,2]
[391236562,1760424632391,-500.0,0.00022932,2]
[391236563,1760424632403,-176.99,0.00023188,2]
[391236564,1760424632412,-836.43,0.00023458,2]
[391236565,1760424632421,-1451.04665566,0.000236,2]
[391236566,1760424632430,-836.43,0.0002411,2]
[391236567,1760424632439,-176.99,0.00024409,2]
[391236568,1760424632449,-1727.026,0.00024555,7]
[391236569,1760424632458,-157.815,0.00024555,7]
[391236570,1760424632471,-716.82464584,0.00024568,2]
[391236571,1760424632480,-154.12747994,0.00024633,2]
[391236572,1760424632490,-150.0,0.00024633,2]
[391236573,1760424632499,-1804.24,0.00024658,30]
[391236574,1760424632510,-644.04407748,0.0002471,3]
[391236575,1760424632519,-716.82464585,0.0002472,2]
[391236576,1760424632528,-1731.49007,0.0002476,2]
[391236577,1760424632538,-836.43,0.00024761,2]
[391236578,1760424632552,-1731.49006,0.0002481,2]
[391236579,1760424632562,-1731.49006,0.0002488,2]
[391236580,1760424632571,-5000.0,0.00024921,2]
[391236581,1760424632582,-500.0,0.00024932,2]
[391236582,1760424632591,-171.0,0.00024932,7]
[391236583,1760424632601,-150.0,0.00024933,2]
[391236584,1760424632611,-1731.49007,0.0002495,2]
[391236585,1760424632620,-171.0,0.00025,7]
[391236586,1760424632630,-1731.49006,0.00025,2]
[391236587,1760424632640,-1731.49006,0.00025,2]
[391236588,1760424632650,-500.0,0.00025052,2]
[391236589,1760424632660,-500.0,0.00025052,2]
[391236590,1760424632669,-525.0,0.00025052,2]
[391236591,1760424632678,-500.0,0.00025052,2]
[391236592,1760424632687,-101539.38256367,0.00025053,7]
[391236593,1760424632699,-2441.59125432,0.00025053,7]
[391236594,1760424632709,-176.99,0.00025629,2]
[391236595,1760424632718,-666.0,0.00025662,3]
[391236596,1760424632727,-152.0,0.00025686,3]
[391236597,1760424632737,-171.0,0.0002589,7]
[391236598,1760424632746,-322.6107,0.0002594,2]
[391236599,1760424632756,-521.60690922,0.0002594,2]
[391236600,1760424632765,-721.12765535,0.0002594,2]
[391236601,1760424632775,-277.35679052,0.0002594,2]
[391236602,1760424632784,-250.0,0.0002594,2]
[391236603,1760424632797,-250.0,0.0002594,2]
[391236604,1760424632806,-250.0,0.0002594,2]
[391236605,1760424632815,-250.0,0.0002594,2]
[391236606,1760424632824,-250.0,0.0002594,2]
[391236607,1760424632834,-250.0,0.0002594,2]
[391236608,1760424632844,-348.24276144,0.0002594,2]
[391236609,1760424632853,-290.0,0.00026213,2]
[391236610,1760424632863,-290.0,0.00026237,2]
[391236611,1760424632872,-290.0,0.0002624,2]
[391236612,1760424632883,-290.0,0.00026249,7]
[391236613,1760424632892,-3269.89,0.00026256,2]
[391236614,1760424632901,-200.0,0.00026378,2]
[391236615,1760424632910,-290.0,0.00026479,7]
[391236616,1760424632919,-241.50277341,0.00026509,2]
[391236617,1760424632928,-503.3794459,0.00026582,2]
[391236618,1760424632936,-3880.7705355,0.00026582,2]
[391236619,1760424632945,-269.9,0.00026676,2]
[391236620,1760424632955,-526.05,0.00026686,2]
[391236621,1760424632963,-290.0,0.00026784,7]
[391236622,1760424632972,-290.0,0.0002684,2]
[391236623,1760424632981,-7172.0,0.00026849,7]
[391236624,1760424632989,-178.0,0.00026849,7]
[391236625,1760424632998,-176.99,0.0002685,2]
[391236626,1760424633007,-1943.30040786,0.000269,2]
[391236627,1760424633016,-5000.0,0.00026915,2]
[391236628,1760424633025,-290.0,0.00026938,7]
[391236629,1760424633035,-1943.30040783,0.00026944,2]
[391236630,1760424633050,-1943.30040783,0.00026988,2]
[391236631,1760424633059,-1322.60081075,0.00027,5]
[391236632,1760424633068,-677.05,0.00027,2]
[391236633,1760424633079,-2000.0,0.00027,2]
[391236634,1760424633088,-2000.0,0.00027,2]
[391236635,1760424633097,-92.46128776,0.00027,2]
[391236636,1760424633109,-297.52122527,0.00027,2]
[391236637,1760424633120,-1610.01748697,0.00027,2]
[391236638,1760424633129,-2000.0,0.00027,2]
[391236639,1760424633138,-2000.0,0.00027,2]
[391236640,1760424633157,-2000.0,0.00027,2]
[391236641,1760424633166,-2000.0,0.00027,2]
[391236642,1760424633176,-2000.01,0.00027,2]
[391236643,1760424633185,-1000.0,0.00027,2]
[391236644,1760424633194,-1000.0,0.00027,2]
[391236645,1760424633203,-1000.0,0.00027,2]
[391236646,1760424633212,-142.83692904,0.00027,2]
[391236647,1760424633232,-868.02797096,0.00027,2]
[391236648,1760424633241,-319.12313835,0.00027012,2]
[391236649,1760424633250,-1943.30040783,0.00027032,2]
[391236650,1760424633259,-904.09603202,0.00027039,2]
[391236651,1760424633268,-11841.13175602,0.0002704,2]
[391236652,1760424633277,-2606.76266243,0.00027049,2]
[391236653,1760424633286,-5016.46984621,0.00027052,2]
[391236654,1760424633299,-560.66637088,0.00027053,2]
[391236655,1760424633309,-904.09603202,0.00027055,2]
[391236656,1760424633319,-31051.32578327,0.00027056,2]
[391236693,1760424638007,-500.0,0.00025052,2]
[391236694,1760424638017,-500.0,0.00025052,2]
[391236695,1760424638027,-70.85916688,0.00025052,2]
[391236696,1760424638038,-429.14083312,0.00025052,2]
[391236697,1760424638051,-500.0,0.00025052,2]
[391236698,1760424638061,-500.0,0.00025052,2]
[391236699,1760424638071,-500.0,0.00025052,2]
[391236700,1760424638080,-491.26885778,0.00025052,2]
[391236701,1760424638090,-500.0,0.00025052,2]
[391236702,1760424638100,-500.0,0.00025052,2]
[391236703,1760424638110,-27045.96600725,0.00027056,2]
[391236704,1760424638121,-9038.70042488,0.00027056,2]
[391236705,1760424638135,-264.24383409,0.00027056,2]
[391236706,1760424638146,-5604.0,0.00027056,2]
[391236707,1760424638157,-586.9,0.00027056,2]
[391236708,1760424638180,-2166.37608666,0.00027056,2]
[391236709,1760424638192,-360.51155737,0.00027056,2]
[391236710,1760424638203,-5945.9760959,0.00027056,2]
[391236711,1760424638214,-9466.21100345,0.00027056,2]
[391236712,1760424638262,-510.98353946,0.00027056,2]
[391236713,1760424638273,-21287.25530728,0.00027056,2]
[391236714,1760424638284,-1113.15470099,0.00027056,2]
[391236715,1760424638295,-5983.30027409,0.00027056,2]
[391236717,1760424638312,-15667.58968967,0.00027056,2]
[391236718,1760424638324,-481.72516394,0.00027056,2]
[391236720,1760424638336,-1946.54612358,0.00027056,2]
[391236723,1760424638351,-131500.00001,0.00027056,2]